[Event "Titled Tuesday Blitz January 31 Late 2023"]
[White "Golding, Alex"]
[Black "Pakleza, Zbigniew"]
[WhiteFideId "427241"]
[BlackFideId "1119290"]
[WhiteElo "2318"]
[BlackElo "2494"]
[Result "1-0"]
[Round "04"]
[TimeControl "180+2"]
[Date "2023.01.31"]
[WhiteClock "0:00:09"]
[BlackClock "0:00:01"]

1. e4 {[%clk 0:03:00]}  d6 {[%clk 0:03:00]} 2. Nc3 {[%clk 0:02:59]}  Nf6 {[%clk 0:03:01]} 3. d4 {[%clk 0:02:59]}  c6 {[%clk 0:03:00]} 4. Be3 {[%clk 0:02:59]}  Qb6 {[%clk 0:03:00]} 5. Bd3 {[%clk 0:02:56]}  Qxb2 {[%clk 0:02:57]} 6. Nge2 {[%clk 0:02:57]}  Qa3 {[%clk 0:02:48]} 7. Bd2 {[%clk 0:02:55]}  Qa5 {[%clk 0:02:36]} 8. O-O {[%clk 0:02:28]}  Qc7 {[%clk 0:02:36]} 9. e5 {[%clk 0:02:27]}  dxe5 {[%clk 0:02:21]} 10. dxe5 {[%clk 0:02:27]}  Qxe5 {[%clk 0:02:22]} 11. Re1 {[%clk 0:02:23]}  e6 {[%clk 0:02:01]} 12. Ng3 {[%clk 0:02:14]}  Qc7 {[%clk 0:01:57]} 13. Qf3 {[%clk 0:02:03]}  Nbd7 {[%clk 0:01:52]} 14. Bf4 {[%clk 0:02:00]}  Bd6 {[%clk 0:01:46]} 15. Bxd6 {[%clk 0:01:56]}  Qxd6 {[%clk 0:01:47]} 16. Nf5 {[%clk 0:01:56]}  Qc5 {[%clk 0:01:35]} 17. Nxg7+ {[%clk 0:01:52]}  Kf8 {[%clk 0:01:28]} 18. Ne4 {[%clk 0:01:50]}  Qe5 {[%clk 0:01:01]} 19. Ng3 {[%clk 0:01:01]}  Qd5 {[%clk 0:00:51]} 20. Qxd5 {[%clk 0:00:02]}  cxd5 {[%clk 0:00:52]} 21. N7h5 {[%clk 0:00:02]}  Nxh5 {[%clk 0:00:52]} 22. Nxh5 {[%clk 0:00:03]}  Nc5 {[%clk 0:00:53]} 23. Bb5 {[%clk 0:00:03]}  Bd7 {[%clk 0:00:47]} 24. Be2 {[%clk 0:00:03]}  Ke7 {[%clk 0:00:42]} 25. c4 {[%clk 0:00:03]}  dxc4 {[%clk 0:00:37]} 26. Bxc4 {[%clk 0:00:04]}  Rac8 {[%clk 0:00:38]} 27. Nf4 {[%clk 0:00:04]}  Bc6 {[%clk 0:00:36]} 28. Bd5 {[%clk 0:00:04]}  Rhd8 {[%clk 0:00:34]} 29. Bxc6 {[%clk 0:00:04]}  Rxc6 {[%clk 0:00:35]} 30. Rac1 {[%clk 0:00:04]}  Rd4 {[%clk 0:00:31]} 31. g3 {[%clk 0:00:02]}  b6 {[%clk 0:00:26]} 32. Kg2 {[%clk 0:00:02]}  Rcd6 {[%clk 0:00:27]} 33. Re3 {[%clk 0:00:02]}  Rd2 {[%clk 0:00:25]} 34. Ra3 {[%clk 0:00:03]}  a5 {[%clk 0:00:21]} 35. h4 {[%clk 0:00:03]}  Rb2 {[%clk 0:00:20]} 36. Nh3 {[%clk 0:00:02]}  Rdd2 {[%clk 0:00:20]} 37. Rf3 {[%clk 0:00:02]}  Rxa2 {[%clk 0:00:18]} 38. Ng5 {[%clk 0:00:02]}  f5 {[%clk 0:00:17]} 39. Nxh7 {[%clk 0:00:03]}  Ne4 {[%clk 0:00:17]} 40. Ng5 {[%clk 0:00:03]}  Rxf2+ {[%clk 0:00:16]} 41. Rxf2 {[%clk 0:00:03]}  Nxf2 {[%clk 0:00:16]} 42. Kg1 {[%clk 0:00:04]}  e5 {[%clk 0:00:11]} 43. Rc6 {[%clk 0:00:04]}  e4 {[%clk 0:00:11]} 44. Rxb6 {[%clk 0:00:04]}  Ng4 {[%clk 0:00:10]} 45. Re6+ {[%clk 0:00:04]}  Kd7 {[%clk 0:00:09]} 46. h5 {[%clk 0:00:04]}  Ra1+ {[%clk 0:00:08]} 47. Kg2 {[%clk 0:00:04]}  Ra2+ {[%clk 0:00:09]} 48. Kg1 {[%clk 0:00:05]}  Rb2 {[%clk 0:00:08]} 49. h6 {[%clk 0:00:05]}  Rb1+ {[%clk 0:00:09]} 50. Kg2 {[%clk 0:00:06]}  Rb2+ {[%clk 0:00:09]} 51. Kg1 {[%clk 0:00:07]}  Rb8 {[%clk 0:00:10]} 52. h7 {[%clk 0:00:07]}  Rh8 {[%clk 0:00:10]} 53. Ra6 {[%clk 0:00:07]}  Ke7 {[%clk 0:00:09]} 54. Kf1 {[%clk 0:00:07]}  Ne3+ {[%clk 0:00:05]} 55. Ke2 {[%clk 0:00:07]}  Nc4 {[%clk 0:00:06]} 56. Rc6 {[%clk 0:00:05]}  Nb2 {[%clk 0:00:04]} 57. Ke3 {[%clk 0:00:05]}  a4 {[%clk 0:00:04]} 58. Kf4 {[%clk 0:00:06]}  a3 {[%clk 0:00:02]} 59. Re6+ {[%clk 0:00:06]}  Kd7 {[%clk 0:00:02]} 60. Ra6 {[%clk 0:00:07]}  Nd3+ {[%clk 0:00:03]} 61. Kxf5 {[%clk 0:00:07]}  e3 {[%clk 0:00:03]} 62. Rxa3 {[%clk 0:00:07]}  Nc5 {[%clk 0:00:01]} 63. Rxe3 {[%clk 0:00:07]}  Nb7 {[%clk 0:00:02]} 64. Kg6 {[%clk 0:00:08]}  Nd6 {[%clk 0:00:02]} 65. Kg7 {[%clk 0:00:08]}  Rc8 {[%clk 0:00:01]} 66. Rd3 {[%clk 0:00:08]}  Kc6 {[%clk 0:00:01]} 67. Rxd6+ {[%clk 0:00:08]}  Kxd6 {[%clk 0:00:01]} 68. h8=Q {[%clk 0:00:09]}  Rc7+ {[%clk 0:00:01]} 69. Kh6 {[%clk 0:00:09]} 1-0


[Site "https://www.chess.com"]

[Event "Titled Tuesday Blitz January 31 Late 2023"]
[White "Iskusnyh, Sergei"]
[Black "Galchenko, Matvey"]
[WhiteFideId "4120027"]
[BlackFideId "24175480"]
[WhiteElo "2440"]
[BlackElo "2438"]
[Result "0-1"]
[Round "04"]
[TimeControl "180+2"]
[Date "2023.01.31"]
[WhiteClock "0:00:06"]
[BlackClock "0:00:06"]

1. d4 {[%clk 0:03:00]}  Nf6 {[%clk 0:02:57]} 2. c4 {[%clk 0:03:00]}  c5 {[%clk 0:02:57]} 3. d5 {[%clk 0:02:58]}  e6 {[%clk 0:02:57]} 4. Nc3 {[%clk 0:02:54]}  exd5 {[%clk 0:02:58]} 5. cxd5 {[%clk 0:02:55]}  d6 {[%clk 0:02:59]} 6. Nf3 {[%clk 0:02:55]}  g6 {[%clk 0:02:59]} 7. Nd2 {[%clk 0:02:53]}  Bg7 {[%clk 0:03:00]} 8. e4 {[%clk 0:02:51]}  O-O {[%clk 0:03:00]} 9. Be2 {[%clk 0:02:51]}  Re8 {[%clk 0:03:00]} 10. O-O {[%clk 0:02:50]}  a6 {[%clk 0:02:50]} 11. a4 {[%clk 0:02:49]}  Nbd7 {[%clk 0:02:50]} 12. h3 {[%clk 0:02:36]}  Rb8 {[%clk 0:02:50]} 13. Ra3 {[%clk 0:02:31]}  Qc7 {[%clk 0:02:45]} 14. a5 {[%clk 0:02:30]}  b5 {[%clk 0:02:31]} 15. axb6 {[%clk 0:02:30]}  Rxb6 {[%clk 0:02:31]} 16. Qc2 {[%clk 0:02:30]}  h6 {[%clk 0:01:56]} 17. Nc4 {[%clk 0:02:23]}  Rb4 {[%clk 0:01:56]} 18. Bf4 {[%clk 0:02:21]}  Bf8 {[%clk 0:01:57]} 19. Re1 {[%clk 0:02:12]}  Nb6 {[%clk 0:01:56]} 20. Nd2 {[%clk 0:01:02]}  Nfxd5 {[%clk 0:01:32]} 21. Bg3 {[%clk 0:00:57]}  Nf6 {[%clk 0:01:27]} 22. Bxa6 {[%clk 0:00:56]}  Bxa6 {[%clk 0:01:22]} 23. Rxa6 {[%clk 0:00:55]}  Qb7 {[%clk 0:01:22]} 24. Ra2 {[%clk 0:00:48]}  Nc4 {[%clk 0:01:21]} 25. Nxc4 {[%clk 0:00:48]}  Rxc4 {[%clk 0:01:22]} 26. f3 {[%clk 0:00:39]}  d5 {[%clk 0:01:20]} 27. Qd3 {[%clk 0:00:32]}  Rd4 {[%clk 0:01:17]} 28. Qb5 {[%clk 0:00:28]}  Qc8 {[%clk 0:00:48]} 29. e5 {[%clk 0:00:22]}  Nd7 {[%clk 0:00:42]} 30. Ra7 {[%clk 0:00:19]}  Nb8 {[%clk 0:00:35]} 31. e6 {[%clk 0:00:19]}  fxe6 {[%clk 0:00:27]} 32. Rc7 {[%clk 0:00:18]}  Qd8 {[%clk 0:00:26]} 33. Rb7 {[%clk 0:00:18]}  Rb4 {[%clk 0:00:25]} 34. Rxb8 {[%clk 0:00:14]}  Qxb8 {[%clk 0:00:21]} 35. Qxb8 {[%clk 0:00:13]}  Rexb8 {[%clk 0:00:20]} 36. Bxb8 {[%clk 0:00:14]}  Rxb8 {[%clk 0:00:20]} 37. Rxe6 {[%clk 0:00:15]}  d4 {[%clk 0:00:16]} 38. Ne4 {[%clk 0:00:13]}  Rxb2 {[%clk 0:00:15]} 39. Rc6 {[%clk 0:00:11]}  Be7 {[%clk 0:00:12]} 40. Rc7 {[%clk 0:00:08]}  Kf7 {[%clk 0:00:11]} 41. Nxc5 {[%clk 0:00:07]}  Rc2 {[%clk 0:00:11]} 42. Na6 {[%clk 0:00:07]}  d3 {[%clk 0:00:12]} 43. Kf1 {[%clk 0:00:06]}  Ke6 {[%clk 0:00:06]} 0-1


[Site "https://www.chess.com"]

[Event "Titled Tuesday Blitz January 31 Late 2023"]
[White "Lizak, Peter"]
[Black "Boros, Denes"]
[WhiteFideId "731595"]
[BlackFideId "722340"]
[WhiteElo "2411"]
[BlackElo "2406"]
[Result "1-0"]
[Round "04"]
[TimeControl "180+2"]
[Date "2023.01.31"]
[WhiteClock "0:00:35"]
[BlackClock "0:01:52"]

1. d4 {[%clk 0:03:00]}  g6 {[%clk 0:02:59]} 2. Nc3 {[%clk 0:03:00]}  Bg7 {[%clk 0:02:58]} 3. e4 {[%clk 0:03:01]}  d5 {[%clk 0:02:59]} 4. exd5 {[%clk 0:02:59]}  Nf6 {[%clk 0:02:59]} 5. Bc4 {[%clk 0:02:58]}  Nbd7 {[%clk 0:02:59]} 6. Nge2 {[%clk 0:02:47]}  Nb6 {[%clk 0:02:57]} 7. Bb5+ {[%clk 0:02:47]}  Bd7 {[%clk 0:02:57]} 8. Qd3 {[%clk 0:02:43]}  a6 {[%clk 0:02:53]} 9. Bxd7+ {[%clk 0:02:39]}  Qxd7 {[%clk 0:02:54]} 10. Nf4 {[%clk 0:02:35]}  Nfxd5 {[%clk 0:02:52]} 11. Nfxd5 {[%clk 0:02:20]}  Nxd5 {[%clk 0:02:53]} 12. O-O {[%clk 0:02:18]}  Nb4 {[%clk 0:02:39]} 13. Qe4 {[%clk 0:02:14]}  Qxd4 {[%clk 0:02:30]} 14. Qxb7 {[%clk 0:02:05]}  O-O {[%clk 0:02:30]} 15. Qxc7 {[%clk 0:01:37]}  Ra7 {[%clk 0:02:22]} 16. Qf4 {[%clk 0:01:32]}  Nxc2 {[%clk 0:02:22]} 17. Qxd4 {[%clk 0:01:28]}  Bxd4 {[%clk 0:02:23]} 18. Rb1 {[%clk 0:01:28]}  Rc8 {[%clk 0:02:16]} 19. Bd2 {[%clk 0:01:16]}  f6 {[%clk 0:02:10]} 20. Rfc1 {[%clk 0:01:07]}  Nb4 {[%clk 0:02:10]} 21. Ne2 {[%clk 0:01:07]}  Bc5 {[%clk 0:02:00]} 22. Bxb4 {[%clk 0:01:04]}  Rac7 {[%clk 0:01:58]} 23. Bxc5 {[%clk 0:01:01]}  Rxc5 {[%clk 0:01:59]} 24. Rxc5 {[%clk 0:01:01]}  Rxc5 {[%clk 0:01:59]} 25. Rc1 {[%clk 0:01:01]}  Rb5 {[%clk 0:02:00]} 26. Rc2 {[%clk 0:00:59]}  Kf7 {[%clk 0:02:00]} 27. Kf1 {[%clk 0:01:00]}  g5 {[%clk 0:02:01]} 28. Ke1 {[%clk 0:01:00]}  h5 {[%clk 0:02:01]} 29. b3 {[%clk 0:00:59]}  g4 {[%clk 0:02:02]} 30. Rc4 {[%clk 0:00:59]}  a5 {[%clk 0:02:02]} 31. Nf4 {[%clk 0:00:56]}  h4 {[%clk 0:02:02]} 32. Nd3 {[%clk 0:00:56]}  f5 {[%clk 0:02:01]} 33. h3 {[%clk 0:00:54]}  gxh3 {[%clk 0:01:56]} 34. gxh3 {[%clk 0:00:54]}  Kf6 {[%clk 0:01:56]} 35. Rxh4 {[%clk 0:00:54]}  Rd5 {[%clk 0:01:55]} 36. Ke2 {[%clk 0:00:53]}  Rd8 {[%clk 0:01:55]} 37. Rh6+ {[%clk 0:00:52]}  Kg5 {[%clk 0:01:54]} 38. Ra6 {[%clk 0:00:50]}  e5 {[%clk 0:01:54]} 39. Nxe5 {[%clk 0:00:47]}  Re8 {[%clk 0:01:54]} 40. Rxa5 {[%clk 0:00:48]}  Kf4 {[%clk 0:01:55]} 41. Kd3 {[%clk 0:00:43]}  Rd8+ {[%clk 0:01:55]} 42. Kc4 {[%clk 0:00:42]}  Rd2 {[%clk 0:01:54]} 43. a4 {[%clk 0:00:39]}  Rc2+ {[%clk 0:01:51]} 44. Kd4 {[%clk 0:00:39]}  Rd2+ {[%clk 0:01:51]} 45. Nd3+ {[%clk 0:00:39]}  Kg5 {[%clk 0:01:51]} 46. Re5 {[%clk 0:00:37]}  Kh4 {[%clk 0:01:51]} 47. Rxf5 {[%clk 0:00:37]}  Ra2 {[%clk 0:01:51]} 48. Rf4+ {[%clk 0:00:35]}  Kxh3 {[%clk 0:01:51]} 49. Kc4 {[%clk 0:00:35]}  Rc2+ {[%clk 0:01:51]} 50. Kb4 {[%clk 0:00:35]}  Rc6 {[%clk 0:01:51]} 51. Rc4 {[%clk 0:00:35]}  Rd6 {[%clk 0:01:51]} 52. Nc5 {[%clk 0:00:35]}  Kg2 {[%clk 0:01:51]} 53. a5 {[%clk 0:00:35]}  Kf3 {[%clk 0:01:51]} 54. Kb5 {[%clk 0:00:34]}  Rd8 {[%clk 0:01:51]} 55. a6 {[%clk 0:00:35]}  Rb8+ {[%clk 0:01:52]} 56. Nb7 {[%clk 0:00:35]} 1-0


[Site "https://www.chess.com"]

[Event "Titled Tuesday Blitz January 31 Late 2023"]
[White "Martinez Reyes, Pedro Ramon"]
[Black "Paichadze, Luka"]
[WhiteFideId "3901807"]
[BlackFideId "13602934"]
[WhiteElo "2376"]
[BlackElo "2515"]
[Result "0-1"]
[Round "04"]
[TimeControl "180+2"]
[Date "2023.01.31"]
[WhiteClock "0:00:03"]
[BlackClock "0:00:11"]

1. e4 {[%clk 0:03:00]}  c6 {[%clk 0:03:00]} 2. Nf3 {[%clk 0:02:55]}  d5 {[%clk 0:03:01]} 3. d3 {[%clk 0:02:55]}  Bg4 {[%clk 0:03:00]} 4. h3 {[%clk 0:02:51]}  dxe4 {[%clk 0:02:54]} 5. hxg4 {[%clk 0:02:48]}  exf3 {[%clk 0:02:54]} 6. Qxf3 {[%clk 0:02:49]}  Nd7 {[%clk 0:02:54]} 7. g5 {[%clk 0:02:43]}  e6 {[%clk 0:02:47]} 8. Nc3 {[%clk 0:02:35]}  Ne7 {[%clk 0:02:45]} 9. Bd2 {[%clk 0:02:27]}  Ng6 {[%clk 0:02:35]} 10. O-O-O {[%clk 0:02:26]}  Be7 {[%clk 0:02:36]} 11. Rh5 {[%clk 0:02:21]}  a5 {[%clk 0:02:32]} 12. Qh3 {[%clk 0:02:17]}  a4 {[%clk 0:02:15]} 13. Rxh7 {[%clk 0:02:14]}  Rg8 {[%clk 0:02:16]} 14. d4 {[%clk 0:02:07]}  a3 {[%clk 0:02:13]} 15. Bd3 {[%clk 0:02:05]}  axb2+ {[%clk 0:02:13]} 16. Kb1 {[%clk 0:02:06]}  Ndf8 {[%clk 0:02:12]} 17. Re1 {[%clk 0:01:22]}  Qxd4 {[%clk 0:01:19]} 18. Rh5 {[%clk 0:01:13]}  b5 {[%clk 0:00:58]} 19. Qf3 {[%clk 0:01:11]}  Ra6 {[%clk 0:00:50]} 20. Nxb5 {[%clk 0:01:02]}  cxb5 {[%clk 0:00:44]} 21. Bxb5+ {[%clk 0:00:56]}  Nd7 {[%clk 0:00:44]} 22. Bxa6 {[%clk 0:00:23]}  Qxd2 {[%clk 0:00:44]} 23. Rd1 {[%clk 0:00:23]}  Qa5 {[%clk 0:00:44]} 24. Qb7 {[%clk 0:00:17]}  Nge5 {[%clk 0:00:43]} 25. Bb5 {[%clk 0:00:16]}  Bd6 {[%clk 0:00:34]} 26. Rh3 {[%clk 0:00:15]}  Ke7 {[%clk 0:00:33]} 27. Bxd7 {[%clk 0:00:15]}  Nxd7 {[%clk 0:00:32]} 28. Rhd3 {[%clk 0:00:12]}  Rb8 {[%clk 0:00:24]} 29. Qc6 {[%clk 0:00:11]}  Rb6 {[%clk 0:00:21]} 30. Qc4 {[%clk 0:00:09]}  Ne5 {[%clk 0:00:19]} 31. Qc3 {[%clk 0:00:07]}  Qa4 {[%clk 0:00:16]} 32. Qb3 {[%clk 0:00:07]}  Rxb3 {[%clk 0:00:15]} 33. Rxb3 {[%clk 0:00:06]}  Nc4 {[%clk 0:00:13]} 34. Rdd3 {[%clk 0:00:03]}  Be5 {[%clk 0:00:12]} 35. f4 {[%clk 0:00:03]}  Bxf4 {[%clk 0:00:11]} 36. c3 {[%clk 0:00:03]}  Nd2+ {[%clk 0:00:11]} 37. Rxd2 {[%clk 0:00:03]}  Bxd2 {[%clk 0:00:12]} 38. Rb7+ {[%clk 0:00:03]}  Kd6 {[%clk 0:00:11]} 39. Rxb2 {[%clk 0:00:03]}  Qd1# {[%clk 0:00:11]} 0-1


[Site "https://www.chess.com"]

[Event "Titled Tuesday Blitz January 31 Late 2023"]
[White "Pasti, Aron"]
[Black "Tactrics"]
[WhiteFideId "785857"]
[WhiteElo "2361"]
[BlackElo "2794"]
[Result "0-1"]
[Round "04"]
[TimeControl "180+2"]
[Date "2023.01.31"]
[WhiteClock "0:00:04"]
[BlackClock "0:01:27"]

1. e4 {[%clk 0:03:00]}  e6 {[%clk 0:02:51]} 2. d4 {[%clk 0:02:56]}  d5 {[%clk 0:02:52]} 3. Nc3 {[%clk 0:02:56]}  Nc6 {[%clk 0:02:52]} 4. Nf3 {[%clk 0:02:44]}  Nf6 {[%clk 0:02:52]} 5. Bg5 {[%clk 0:02:40]}  Be7 {[%clk 0:02:52]} 6. e5 {[%clk 0:02:40]}  Ne4 {[%clk 0:02:51]} 7. Bxe7 {[%clk 0:02:40]}  Qxe7 {[%clk 0:02:52]} 8. Bd3 {[%clk 0:02:40]}  Qb4 {[%clk 0:02:52]} 9. O-O {[%clk 0:02:34]}  Nxc3 {[%clk 0:02:51]} 10. bxc3 {[%clk 0:02:35]}  Qxc3 {[%clk 0:02:52]} 11. Rb1 {[%clk 0:02:25]}  Qa3 {[%clk 0:02:52]} 12. Ng5 {[%clk 0:02:13]}  Qe7 {[%clk 0:02:46]} 13. Qh5 {[%clk 0:02:07]}  Nxd4 {[%clk 0:02:31]} 14. Nxh7 {[%clk 0:02:07]}  Kd8 {[%clk 0:02:25]} 15. Qg4 {[%clk 0:01:53]}  Nf5 {[%clk 0:01:33]} 16. Bxf5 {[%clk 0:00:03]}  g6 {[%clk 0:01:33]} 17. Bxg6 {[%clk 0:00:03]}  fxg6 {[%clk 0:01:33]} 18. Nf6 {[%clk 0:00:04]}  Qg7 {[%clk 0:01:27]} 0-1


[Site "https://www.chess.com"]

[Event "Titled Tuesday Blitz January 31 Late 2023"]
[White "Shapiro, Viktor"]
[Black "Avila Pavas, Santiago"]
[WhiteFideId "4175700"]
[BlackFideId "4437128"]
[WhiteElo "2192"]
[BlackElo "2522"]
[Result "0-1"]
[Round "04"]
[TimeControl "180+2"]
[Date "2023.01.31"]
[WhiteClock "0:01:45"]
[BlackClock "0:00:22"]

1. c4 {[%clk 0:03:00]}  Nf6 {[%clk 0:03:00]} 2. Nc3 {[%clk 0:03:00]}  e6 {[%clk 0:03:00]} 3. g3 {[%clk 0:03:01]}  d5 {[%clk 0:03:01]} 4. Bg2 {[%clk 0:03:01]}  d4 {[%clk 0:03:01]} 5. Na4 {[%clk 0:03:01]}  e5 {[%clk 0:02:58]} 6. d3 {[%clk 0:03:01]}  Be7 {[%clk 0:02:57]} 7. Nf3 {[%clk 0:03:00]}  Nc6 {[%clk 0:02:57]} 8. a3 {[%clk 0:02:58]}  a5 {[%clk 0:02:57]} 9. O-O {[%clk 0:02:57]}  O-O {[%clk 0:02:56]} 10. Bg5 {[%clk 0:02:58]}  Nd7 {[%clk 0:02:54]} 11. Bd2 {[%clk 0:02:56]}  Nf6 {[%clk 0:02:40]} 12. Bg5 {[%clk 0:02:49]}  h6 {[%clk 0:02:29]} 13. Bxf6 {[%clk 0:02:49]}  Bxf6 {[%clk 0:02:30]} 14. Nd2 {[%clk 0:02:50]}  Be7 {[%clk 0:02:29]} 15. Ne4 {[%clk 0:02:44]}  Rb8 {[%clk 0:02:24]} 16. Rb1 {[%clk 0:02:38]}  Bd7 {[%clk 0:02:12]} 17. c5 {[%clk 0:02:35]}  f5 {[%clk 0:02:07]} 18. Nd2 {[%clk 0:02:35]}  Be6 {[%clk 0:02:08]} 19. b4 {[%clk 0:02:33]}  axb4 {[%clk 0:02:07]} 20. axb4 {[%clk 0:02:33]}  Bf6 {[%clk 0:02:07]} 21. Nc4 {[%clk 0:02:23]}  Bd5 {[%clk 0:02:05]} 22. Bxd5+ {[%clk 0:02:17]}  Qxd5 {[%clk 0:02:06]} 23. b5 {[%clk 0:02:17]}  Ne7 {[%clk 0:02:05]} 24. Qb3 {[%clk 0:02:15]}  Kh7 {[%clk 0:02:05]} 25. b6 {[%clk 0:02:09]}  Rbc8 {[%clk 0:01:51]} 26. bxc7 {[%clk 0:02:09]}  Rxc7 {[%clk 0:01:52]} 27. Nd6 {[%clk 0:02:05]}  Qc6 {[%clk 0:01:48]} 28. Qb5 {[%clk 0:01:57]}  Ra8 {[%clk 0:01:40]} 29. Nb6 {[%clk 0:01:53]}  Ra2 {[%clk 0:01:36]} 30. Ne8 {[%clk 0:01:45]}  Qxb5 {[%clk 0:00:22]} 0-1


[Site "https://www.chess.com"]

[Event "Titled Tuesday Blitz January 31 Late 2023"]
[White "Sztokbant, Bernardo Vainzoff"]
[Black "Salimova, Nurgyul"]
[WhiteFideId "2115956"]
[BlackFideId "2915138"]
[WhiteElo "2213"]
[BlackElo "2391"]
[Result "1/2-1/2"]
[Round "04"]
[TimeControl "180+2"]
[Date "2023.01.31"]
[WhiteClock "0:01:26"]
[BlackClock "0:01:35"]

1. d4 {[%clk 0:03:00]}  Nf6 {[%clk 0:02:59]} 2. c4 {[%clk 0:03:00]}  e6 {[%clk 0:02:56]} 3. Nf3 {[%clk 0:03:00]}  b6 {[%clk 0:02:54]} 4. g3 {[%clk 0:03:00]}  Ba6 {[%clk 0:02:53]} 5. b3 {[%clk 0:03:00]}  Bb4+ {[%clk 0:02:51]} 6. Bd2 {[%clk 0:03:00]}  c5 {[%clk 0:02:49]} 7. Bg2 {[%clk 0:03:00]}  O-O {[%clk 0:02:48]} 8. O-O {[%clk 0:02:58]}  Bb7 {[%clk 0:02:46]} 9. a3 {[%clk 0:02:40]}  Bxd2 {[%clk 0:02:44]} 10. Qxd2 {[%clk 0:02:36]}  cxd4 {[%clk 0:02:40]} 11. Nxd4 {[%clk 0:02:25]}  Bxg2 {[%clk 0:02:41]} 12. Kxg2 {[%clk 0:02:26]}  d5 {[%clk 0:02:41]} 13. cxd5 {[%clk 0:02:19]}  Qxd5+ {[%clk 0:02:42]} 14. Nf3 {[%clk 0:02:04]}  Qxb3 {[%clk 0:02:37]} 15. Nc3 {[%clk 0:02:04]}  Nc6 {[%clk 0:02:34]} 16. Rfc1 {[%clk 0:01:50]}  Rfd8 {[%clk 0:02:28]} 17. Qe3 {[%clk 0:01:43]}  Rac8 {[%clk 0:02:17]} 18. Nd2 {[%clk 0:01:41]}  Qb2 {[%clk 0:01:49]} 19. Nc4 {[%clk 0:01:34]}  Qb3 {[%clk 0:01:50]} 20. Nd2 {[%clk 0:01:27]}  Qb2 {[%clk 0:01:38]} 21. Nc4 {[%clk 0:01:27]}  Qb3 {[%clk 0:01:35]} 22. Nd2 {[%clk 0:01:26]} 1/2-1/2


[Site "https://www.chess.com"]

[Event "Titled Tuesday Blitz January 31 Late 2023"]
[White "Bryakin, Mikhail"]
[Black "Moral Garcia, Serafin"]
[WhiteFideId "4165314"]
[BlackFideId "2201925"]
[WhiteElo "2455"]
[BlackElo "2238"]
[Result "1-0"]
[Round "04"]
[TimeControl "180+2"]
[Date "2023.01.31"]
[WhiteClock "0:01:06"]
[BlackClock "0:00:08"]

1. e4 {[%clk 0:02:57]}  e5 {[%clk 0:02:58]} 2. d4 {[%clk 0:02:55]}  exd4 {[%clk 0:02:58]} 3. Qxd4 {[%clk 0:02:51]}  Nc6 {[%clk 0:02:58]} 4. Qd3 {[%clk 0:02:51]}  Nf6 {[%clk 0:02:58]} 5. Nc3 {[%clk 0:02:50]}  Bb4 {[%clk 0:02:55]} 6. Ne2 {[%clk 0:02:50]}  O-O {[%clk 0:02:55]} 7. Bg5 {[%clk 0:02:50]}  h6 {[%clk 0:02:52]} 8. Bh4 {[%clk 0:02:42]}  Ne5 {[%clk 0:02:51]} 9. Qg3 {[%clk 0:02:40]}  Ng6 {[%clk 0:02:48]} 10. O-O-O {[%clk 0:02:35]}  Bxc3 {[%clk 0:02:30]} 11. Nxc3 {[%clk 0:02:33]}  Nxe4 {[%clk 0:02:10]} 12. Bxd8 {[%clk 0:02:21]}  Nxg3 {[%clk 0:02:09]} 13. hxg3 {[%clk 0:02:22]}  Rxd8 {[%clk 0:02:09]} 14. Nb5 {[%clk 0:02:12]}  c6 {[%clk 0:02:02]} 15. Nd6 {[%clk 0:02:13]}  Nf8 {[%clk 0:01:49]} 16. Bc4 {[%clk 0:02:10]}  Ne6 {[%clk 0:01:49]} 17. f4 {[%clk 0:02:10]}  b5 {[%clk 0:01:47]} 18. Bb3 {[%clk 0:02:09]}  a5 {[%clk 0:01:47]} 19. a3 {[%clk 0:02:08]}  Ba6 {[%clk 0:01:36]} 20. Rhe1 {[%clk 0:02:04]}  Kf8 {[%clk 0:01:32]} 21. f5 {[%clk 0:01:52]}  Ng5 {[%clk 0:01:31]} 22. Re3 {[%clk 0:01:46]}  Rab8 {[%clk 0:01:06]} 23. Rde1 {[%clk 0:01:45]}  f6 {[%clk 0:00:39]} 24. c3 {[%clk 0:01:37]}  Bb7 {[%clk 0:00:23]} 25. a4 {[%clk 0:01:18]}  bxa4 {[%clk 0:00:22]} 26. Bc4 {[%clk 0:01:18]}  Ba8 {[%clk 0:00:21]} 27. R1e2 {[%clk 0:01:15]}  c5 {[%clk 0:00:20]} 28. g4 {[%clk 0:01:16]}  Bc6 {[%clk 0:00:18]} 29. Kc2 {[%clk 0:01:15]}  Ba8 {[%clk 0:00:18]} 30. Re7 {[%clk 0:01:12]}  Bc6 {[%clk 0:00:16]} 31. Kc1 {[%clk 0:01:09]}  Ba8 {[%clk 0:00:15]} 32. R7e3 {[%clk 0:01:07]}  Bc6 {[%clk 0:00:16]} 33. Kd1 {[%clk 0:01:07]}  Ba8 {[%clk 0:00:16]} 34. Ke1 {[%clk 0:01:08]}  Bc6 {[%clk 0:00:16]} 35. Kf2 {[%clk 0:01:08]}  Ba8 {[%clk 0:00:16]} 36. Kg3 {[%clk 0:01:09]}  Bc6 {[%clk 0:00:15]} 37. Kh4 {[%clk 0:01:10]}  Ba8 {[%clk 0:00:14]} 38. Kh5 {[%clk 0:01:10]}  Bc6 {[%clk 0:00:14]} 39. Kg6 {[%clk 0:01:11]}  Ba8 {[%clk 0:00:14]} 40. Re7 {[%clk 0:01:09]}  Ne6 {[%clk 0:00:08]} 41. Rf7+ {[%clk 0:01:06]} 1-0


[Site "https://www.chess.com"]

[Event "Titled Tuesday Blitz January 31 Late 2023"]
[White "Richter, Paul"]
[Black "Trost, Edvin"]
[WhiteFideId "2046350"]
[BlackFideId "1729519"]
[WhiteElo "2171"]
[BlackElo "2399"]
[Result "1-0"]
[Round "04"]
[TimeControl "180+2"]
[Date "2023.01.31"]
[WhiteClock "0:00:26"]
[BlackClock "0:00:45"]

1. e4 {[%clk 0:03:00]}  c6 {[%clk 0:02:33]} 2. Nc3 {[%clk 0:03:00]}  Qa5 {[%clk 0:02:33]} 3. Nf3 {[%clk 0:02:59]}  Qh5 {[%clk 0:02:31]} 4. Be2 {[%clk 0:02:57]}  f6 {[%clk 0:02:27]} 5. Nd4 {[%clk 0:02:38]}  Qf7 {[%clk 0:02:17]} 6. Nf3 {[%clk 0:02:25]}  Kd8 {[%clk 0:02:07]} 7. d4 {[%clk 0:02:26]}  Qe8 {[%clk 0:02:04]} 8. h4 {[%clk 0:02:23]}  d6 {[%clk 0:02:04]} 9. Bf4 {[%clk 0:02:19]}  Kc7 {[%clk 0:02:03]} 10. a4 {[%clk 0:02:14]}  e5 {[%clk 0:02:03]} 11. Bg3 {[%clk 0:02:13]}  Bg4 {[%clk 0:02:02]} 12. dxe5 {[%clk 0:02:00]}  dxe5 {[%clk 0:01:50]} 13. Nxe5 {[%clk 0:01:56]}  fxe5 {[%clk 0:01:44]} 14. Bxg4 {[%clk 0:01:55]}  Bd6 {[%clk 0:01:45]} 15. Qd3 {[%clk 0:01:47]}  Na6 {[%clk 0:01:44]} 16. Qc4 {[%clk 0:01:45]}  Nf6 {[%clk 0:01:43]} 17. Nb5+ {[%clk 0:01:43]}  Kb8 {[%clk 0:01:31]} 18. Nxd6 {[%clk 0:01:39]}  Qe7 {[%clk 0:01:31]} 19. Nf5 {[%clk 0:01:33]}  Qc7 {[%clk 0:01:30]} 20. Bf3 {[%clk 0:01:27]}  g6 {[%clk 0:01:28]} 21. Ne3 {[%clk 0:01:22]}  Re8 {[%clk 0:01:27]} 22. O-O-O {[%clk 0:01:20]}  Qe7 {[%clk 0:01:24]} 23. Ng4 {[%clk 0:01:11]}  Nxg4 {[%clk 0:01:24]} 24. Bxg4 {[%clk 0:01:12]}  Nc5 {[%clk 0:01:25]} 25. h5 {[%clk 0:01:08]}  a5 {[%clk 0:01:24]} 26. hxg6 {[%clk 0:01:06]}  hxg6 {[%clk 0:01:24]} 27. Rh6 {[%clk 0:01:03]}  Ra6 {[%clk 0:01:24]} 28. Kb1 {[%clk 0:00:58]}  Rb6 {[%clk 0:01:25]} 29. c3 {[%clk 0:00:50]}  Na6 {[%clk 0:00:53]} 30. Rxg6 {[%clk 0:00:47]}  Qa3 {[%clk 0:00:51]} 31. Rd2 {[%clk 0:00:40]}  Ka7 {[%clk 0:00:49]} 32. f3 {[%clk 0:00:37]}  Rd8 {[%clk 0:00:47]} 33. Bf2 {[%clk 0:00:27]}  c5 {[%clk 0:00:45]} 34. Rxb6 {[%clk 0:00:26]} 1-0


[Site "https://www.chess.com"]